[Event "GER-ch Youth U10w 2019"]
[Site "Willingen"]
[Date "2019.06.11"]
[Round "5.1"]
[White "Wartenberg, Alissa"]
[Black "Mirnaya, Veronika"]
[Result "1/2-1/2"]
[ECO "C47"]
[WhiteElo "1291"]
[BlackElo "1237"]
[Annotator "NA"]
[PlyCount "114"]
[EventDate "2019.06.07"]
[EventType "swiss"]
[EventRounds "11"]
[EventCountry "GER"]
[SourceTitle "playchess.com"]
[Source "ChessBase"]
[SourceQuality "1"]
[TimeControl "40/4500+30:900+30"]

1. e4 {[%emt 0:00:00]} e5 {[%emt 0:00:00]} 2. Nf3 {[%emt 0:00:00]} Nc6 {[%emt 0:00:00]} 3. Nc3 {[%emt 0:00:00]} Nf6 {[%emt 0:00:00]} 4. d4 {[%emt 0:00:03]} exd4 {[%emt 0:00:03]} 5. Nxd4 {[%emt 0:00:12]} Bb4 {[%emt 0:00:11]} 6. Nxc6 {[%emt 0:00:08]} bxc6 {[%emt 0:00:09]} 7. Bd3 {[%emt 0:00:19]} d5 {[%emt 0:00:56]} 8. exd5 {[%emt 0:00:09]} cxd5 {[%emt 0:00:13]} 9. O-O {[%emt 0:00:11]} O-O {[%emt 0:00:21]} 10. Bg5 {[%emt 0:00:08]} c6 {[%emt 0:00:48]} 11. Qf3 {[%emt 0:00:20]} Be7 {[%emt 0:00:36]} 12. h3 {[%emt 0:02:21]} h6 {[%emt 0:02:26]} 13. Bf4 {[%emt 0:00:12]} Bb7 {[%emt 0:03:20]} 14. Qg3 {[%emt 0:03:08]} Nh5 {[%emt 0:00:44]} 15. Qg4 {[%emt 0:02:15]} Nxf4 {[%emt 0:00:14]} 16. Qxf4 {[%emt 0:00:11]} c5 {[%emt 0:02:39]} 17. Rad1 {[%emt 0:00:56]} Bd6 {[%emt 0:02:23]} 18. Qf3 {[%emt 0:01:21]} Qd7 {[%emt 0:01:05]} 19. Bb5 {[%emt 0:01:46]} d4 {[%emt 0:06:35]} 20. Bxd7 {[%emt 0:00:06]} Bxf3 {[%emt 0:00:05]} 21. gxf3 {[%emt 0:00:05]} Rad8 {[%emt 0:00:31]} 22. Ba4 {[%emt 0:01:15]} dxc3 {[%emt 0:00:10]} 23. bxc3 {[%emt 0:00:10]} Be5 {[%emt 0:01:13]} 24. c4 {[%emt 0:00:34]} Bd4 {[%emt 0:00:35]} 25. Rd3 {[%emt 0:00:24]} a5 {[%emt 0:01:44]} 26. Rfd1 {[%emt 0:00:30]} Rb8 {[%emt 0:02:25]} 27. Bb5 {[%emt 0:01:24]} Rb6 {[%emt 0:02:34]} 28. c3 {[%emt 0:01:28]} Rg6+ {[%emt 0:00:45]} 29. Kf1 {[%emt 0:00:43]} Be5 {[%emt 0:01:29]} 30. Rd5 {[%emt 0:00:27]} Bxc3 {[%emt 0:00:20]} 31. Rxc5 {[%emt 0:00:05]} Bb4 {[%emt 0:01:30]} 32. Rcd5 {[%emt 0:00:42]} Rc8 {[%emt 0:02:56]} 33. Rd8+ {[%emt 0:00:33]} Rxd8 {[%emt 0:00:32]} 34. Rxd8+ {[%emt 0:00:10]} Kh7 {[%emt 0:06:16]} 35. c5 {[%emt 0:02:22]} Rf6 {[%emt 0:00:34]} 36. c6 {[%emt 0:01:19]} Bd6 {[%emt 0:02:00]} 37. Ra8 {[%emt 0:04:00]} Rxf3 {[%emt 0:04:54]} 38. Rxa5 {[%emt 0:01:01]} Rc3 {[%emt 0:00:57]} 39. Kg2 {[%emt 0:00:22]} Kg6 {[%emt 0:00:32]} 40. Ra6 {[%emt 0:00:22]} Kf5 {[%emt 0:01:32]} 41. Ra4 {[%emt 0:17:03]} Ke5 {[%emt 0:19:33]} 42. Rc4 {[%emt 0:02:09]} Rxc4 {[%emt 0:04:57]} 43. Bxc4 {[%emt 0:00:07]} f6 {[%emt 0:01:49]} 44. a4 {[%emt 0:00:12]} Kd4 {[%emt 0:00:12]} 45. a5 {[%emt 0:01:38]} Kc5 {[%emt 0:00:42]} 46. a6 {[%emt 0:00:06]} Kxc6 {[%emt 0:00:50]} 47. Kf3 {[%emt 0:00:34]} Bc5 {[%emt 0:00:10]} 48. Bf1 {[%emt 0:01:44]} Kd5 {[%emt 0:02:18]} 49. Kg3 {[%emt 0:01:14]} Ke5 {[%emt 0:00:24]} 50. f4+ {[%emt 0:01:13]} Ke4 {[%emt 0:02:24]} 51. Bg2+ {[%emt 0:01:16]} Kf5 {[%emt 0:03:46]} 52. h4 {[%emt 0:01:11]} g5 {[%emt 0:01:24]} 53. Bh3+ {[%emt 0:01:38]} Ke4 {[%emt 0:02:06]} 54. f5 {[%emt 0:00:47]} gxh4+ {[%emt 0:05:30]} 55. Kxh4 {[%emt 0:00:24]} Bd4 {[%emt 0:00:25]} 56. Kh5 {[%emt 0:00:34]} Kd5 {[%emt 0:00:26]} 57. Kxh6 {[%emt 0:00:16]} Kc6 {[%emt 0:00:19] normal} 1/2-1/2

[Event "GER-ch Youth U10w 2019"]
[Site "Willingen"]
[Date "2019.06.11"]
[Round "5.2"]
[White "Oellrich, Emma"]
[Black "Bako, Isabella"]
[Result "1-0"]
[ECO "B48"]
[WhiteElo "1484"]
[BlackElo "1215"]
[Annotator "NA"]
[PlyCount "50"]
[EventDate "2019.06.07"]
[EventType "swiss"]
[EventRounds "11"]
[EventCountry "GER"]
[SourceTitle "playchess.com"]
[Source "ChessBase"]
[SourceQuality "1"]
[TimeControl "40/4500+30:900+30"]

1. e4 {[%emt 0:00:00]} c5 {[%emt 0:00:00]} 2. Nf3 {[%emt 0:00:00]} e6 {[%emt 0:00:00]} 3. d4 {[%emt 0:00:00]} cxd4 {[%emt 0:00:11]} 4. Nxd4 {[%emt 0:00:00]} Nc6 {[%emt 0:00:22]} 5. Nc3 {[%emt 0:00:00]} Qc7 {[%emt 0:00:43]} 6. Be3 {[%emt 0:00:02]} a6 {[%emt 0:00:35]} 7. Qf3 {[%emt 0:00:08]} Nf6 {[%emt 0:01:57]} 8. O-O-O {[%emt 0:00:05]} b5 {[%emt 0:03:22]} 9. e5 {[%emt 0:00:10]} b4 {[%emt 0:05:44]} 10. Ncb5 {[%emt 0:00:16]} axb5 {[%emt 0:01:36]} 11. Nxb5 {[%emt 0:00:05]} Qxe5 {[%emt 0:02:03]} 12. Bf4 {[%emt 0:00:07]} Qf5 {[%emt 0:06:17]} 13. Nc7+ {[%emt 0:00:27]} Kd8 {[%emt 0:01:22]} 14. Nxa8 {[%emt 0:00:11]} b3 {[%emt 0:02:22]} 15. axb3 {[%emt 0:03:37]} Bb7 {[%emt 0:06:22]} 16. Nb6 {[%emt 0:03:30]} Nd4 {[%emt 0:10:20]} 17. Qd3 {[%emt 0:00:14]} Qxf4+ {[%emt 0:12:50]} 18. Kb1 {[%emt 0:00:08]} e5 {[%emt 0:01:47]} 19. Qg3 {[%emt 0:05:17]} Qf5 {[%emt 0:01:38]} 20. Bd3 {[%emt 0:01:54]} Be4 {[%emt 0:03:10]} 21. Nc4 {[%emt 0:09:09]} Nc6 {[%emt 0:03:13]} 22. Ne3 {[%emt 0:09:27]} Qe6 {[%emt 0:02:35]} 23. Qh4 {[%emt 0:04:44]} Bxd3 {[%emt 0:02:20]} 24. Rxd3 {[%emt 0:02:47]} Nb4 {[%emt 0:03:00] normal} 25. Rdd1 {[%emt 0:03:54]} Qa6 {[%emt 0:01:18] normal} 1-0

[Event "GER-ch Youth U10w 2019"]
[Site "Willingen"]
[Date "2019.06.11"]
[Round "5.3"]
[White "Heutling, Sarah"]
[Black "Sickmann, Lisa"]
[Result "0-1"]
[ECO "B43"]
[WhiteElo "1147"]
[BlackElo "1418"]
[Annotator "NA"]
[PlyCount "42"]
[EventDate "2019.06.07"]
[EventType "swiss"]
[EventRounds "11"]
[EventCountry "GER"]
[SourceTitle "playchess.com"]
[Source "ChessBase"]
[SourceQuality "1"]
[TimeControl "40/4500+30:900+30"]

1. e4 {[%emt 0:00:00]} c5 {[%emt 0:00:00]} 2. Nf3 {[%emt 0:00:00]} e6 {[%emt 0:00:00]} 3. d4 {[%emt 0:00:00]} cxd4 {[%emt 0:00:04]} 4. Nxd4 {[%emt 0:00:00]} a6 {[%emt 0:00:27]} 5. Nc3 {[%emt 0:00:03]} Qc7 {[%emt 0:00:44]} 6. Bd3 {[%emt 0:00:22]} Bb4 {[%emt 0:00:50]} 7. Bd2 {[%emt 0:00:13]} Nf6 {[%emt 0:00:37]} 8. O-O {[%emt 0:00:31]} O-O {[%emt 0:00:20]} 9. a3 {[%emt 0:00:30]} Be7 {[%emt 0:00:41]} 10. Qe2 {[%emt 0:01:48]} d6 {[%emt 0:02:04]} 11. Bc4 {[%emt 0:03:04]} Rd8 {[%emt 0:02:52]} 12. Qd3 {[%emt 0:02:48]} Ng4 {[%emt 0:02:08]} 13. Qg3 {[%emt 0:01:55]} Qxc4 {[%emt 0:01:09]} 14. Qxg4 {[%emt 0:00:54]} Qxd4 {[%emt 0:00:18]} 15. Be3 {[%emt 0:01:24]} Qc4 {[%emt 0:06:25]} 16. Rad1 {[%emt 0:02:14]} Nd7 {[%emt 0:01:37]} 17. Rd4 {[%emt 0:03:09]} Qc7 {[%emt 0:02:14]} 18. Qh3 {[%emt 0:07:31]} Nf6 {[%emt 0:00:34]} 19. Bg5 {[%emt 0:03:21]} e5 {[%emt 0:00:14]} 20. Qd3 {[%emt 0:02:54]} exd4 {[%emt 0:00:07]} 21. Qxd4 {[%emt 0:00:19]} Qc5 {[%emt 0:00:00] normal} 0-1

[Event "GER-ch Youth U10w 2019"]
[Site "Willingen"]
[Date "2019.06.11"]
[Round "5.4"]
[White "Moldovan, Tatiana"]
[Black "Czaeczine, Paula"]
[Result "1/2-1/2"]
[ECO "C77"]
[WhiteElo "1269"]
[BlackElo "1170"]
[Annotator "NA"]
[PlyCount "128"]
[EventDate "2019.06.07"]
[EventType "swiss"]
[EventRounds "11"]
[EventCountry "GER"]
[SourceTitle "playchess.com"]
[Source "ChessBase"]
[SourceQuality "1"]
[TimeControl "40/4500+30:900+30"]

1. e4 {[%emt 0:00:00]} e5 {[%emt 0:00:00]} 2. Nf3 {[%emt 0:00:00]} Nc6 {[%emt 0:00:00]} 3. Bb5 {[%emt 0:00:00]} a6 {[%emt 0:00:00]} 4. Ba4 {[%emt 0:00:00]} Nf6 {[%emt 0:00:00]} 5. d4 b5 {[%emt 0:02:25]} 6. Bb3 {[%emt 0:00:10]} exd4 {[%emt 0:01:11]} 7. O-O {[%emt 0:00:17]} Nxe4 {[%emt 0:03:30]} 8. Re1 {[%emt 0:00:10]} d5 {[%emt 0:00:09]} 9. Nxd4 {[%emt 0:00:07]} Nxd4 {[%emt 0:00:33]} 10. Qxd4 {[%emt 0:00:09]} Be6 {[%emt 0:00:19]} 11. Bxd5 {[%emt 0:01:14]} Qxd5 {[%emt 0:01:09]} 12. Qxd5 {[%emt 0:02:17]} Bxd5 {[%emt 0:00:08]} 13. f3 {[%emt 0:00:10]} Bc5+ {[%emt 0:00:17]} 14. Be3 {[%emt 0:00:19]} Bd6 {[%emt 0:07:03]} 15. fxe4 {[%emt 0:00:34]} Bxe4 16. Bf2 f5 {[%emt 0:01:49]} 17. Nd2 {[%emt 0:00:41]} O-O {[%emt 0:01:35]} 18. Nxe4 {[%emt 0:00:49]} fxe4 {[%emt 0:00:13]} 19. g3 {[%emt 0:00:23]} Rae8 {[%emt 0:00:40]} 20. Re2 {[%emt 0:00:15]} Rf7 {[%emt 0:05:47]} 21. Rae1 {[%emt 0:00:22]} Ref8 {[%emt 0:00:54]} 22. Bd4 {[%emt 0:00:26]} c5 {[%emt 0:00:54]} 23. Bc3 {[%emt 0:00:10]} b4 {[%emt 0:01:15]} 24. Bd2 {[%emt 0:00:15]} Be5 {[%emt 0:03:12]} 25. Rxe4 {[%emt 0:00:25]} Bxb2 {[%emt 0:00:14]} 26. Be3 {[%emt 0:00:53]} Bc3 {[%emt 0:01:37]} 27. Rd1 {[%emt 0:00:27]} Rf5 {[%emt 0:00:55]} 28. g4 {[%emt 0:00:23]} Re5 {[%emt 0:01:48]} 29. Rxe5 {[%emt 0:00:12]} Bxe5 {[%emt 0:00:09]} 30. Bxc5 {[%emt 0:00:07]} Rc8 {[%emt 0:01:01]} 31. Bxb4 {[%emt 0:00:29]} Rxc2 {[%emt 0:00:14]} 32. h4 {[%emt 0:00:52]} Rxa2 {[%emt 0:00:21]} 33. Rd8+ {[%emt 0:00:09]} Kf7 {[%emt 0:00:28]} 34. Rf8+ {[%emt 0:00:27]} Ke6 {[%emt 0:00:39]} 35. Re8+ {[%emt 0:00:22]} Kd5 {[%emt 0:00:11]} 36. Rc8 {[%emt 0:01:43]} Ra4 {[%emt 0:00:32]} 37. Rd8+ {[%emt 0:01:26]} Kc4 {[%emt 0:00:46]} 38. Be7 {[%emt 0:01:06]} Kb3 {[%emt 0:01:11]} 39. Kf1 {[%emt 0:02:39]} Rxg4 {[%emt 0:00:21]} 40. Rd3+ {[%emt 0:00:00]} Bc3 {[%emt 0:00:24]} 41. Bd8 {[%emt 0:22:40]} Rd4 {[%emt 0:16:03]} 42. Rxd4 {[%emt 0:00:41]} Bxd4 {[%emt 0:00:10]} 43. Kg2 {[%emt 0:00:23]} Kb4 {[%emt 0:00:14]} 44. Kf3 {[%emt 0:00:25]} a5 {[%emt 0:00:18]} 45. Bxa5+ {[%emt 0:00:18]} Kxa5 {[%emt 0:00:09]} 46. Kg4 {[%emt 0:00:07]} Kb5 {[%emt 0:00:17]} 47. h5 {[%emt 0:00:12]} Kc6 {[%emt 0:00:11]} 48. Kg5 {[%emt 0:01:46]} Kd6 {[%emt 0:00:12]} 49. Kf5 {[%emt 0:00:40]} Ke7 {[%emt 0:00:16]} 50. h6 {[%emt 0:01:02]} gxh6 {[%emt 0:00:18]} 51. Kg4 {[%emt 0:00:05]} Kf6 52. Kf4 {[%emt 0:00:38]} Kg6 {[%emt 0:00:44]} 53. Kg4 {[%emt 0:00:11]} h5+ {[%emt 0:00:18]} 54. Kh4 {[%emt 0:00:06]} Bf6+ {[%emt 0:00:24]} 55. Kh3 {[%emt 0:00:16]} Kg5 {[%emt 0:00:10]} 56. Kg3 {[%emt 0:00:11]} h4+ {[%emt 0:00:31]} 57. Kh3 {[%emt 0:00:08]} h5 {[%emt 0:00:36]} 58. Kg2 {[%emt 0:00:14]} Kg4 {[%emt 0:00:19]} 59. Kh2 {[%emt 0:00:18]} Be5+ {[%emt 0:00:36]} 60. Kg2 {[%emt 0:00:28]} h3+ {[%emt 0:00:46]} 61. Kg1 {[%emt 0:01:42]} Kg3 {[%emt 0:00:21]} 62. Kh1 {[%emt 0:00:20]} h4 {[%emt 0:00:19]} 63. Kg1 {[%emt 0:00:08]} h2+ {[%emt 0:00:09]} 64. Kh1 {[%emt 0:00:08]} Kh3 {normal} 1/2-1/2

[Event "GER-ch Youth U10w 2019"]
[Site "Willingen"]
[Date "2019.06.11"]
[Round "5.5"]
[White "Glotz, Diana"]
[Black "Haug, Mara"]
[Result "1/2-1/2"]
[ECO "A22"]
[WhiteElo "1244"]
[BlackElo "1097"]
[Annotator "NA"]
[PlyCount "62"]
[EventDate "2019.06.07"]
[EventType "swiss"]
[EventRounds "11"]
[EventCountry "GER"]
[SourceTitle "playchess.com"]
[Source "ChessBase"]
[SourceQuality "1"]
[TimeControl "40/4500+30:900+30"]

1. c4 {[%emt 0:00:00]} e5 {[%emt 0:00:00]} 2. Nc3 {[%emt 0:00:00]} Nf6 {[%emt 0:00:00]} 3. g3 {[%emt 0:00:04]} d5 {[%emt 0:00:02]} 4. cxd5 {[%emt 0:00:52]} Nxd5 {[%emt 0:00:15]} 5. Bg2 {[%emt 0:00:19]} Nb6 {[%emt 0:00:20]} 6. e3 {[%emt 0:01:17]} Nc6 {[%emt 0:02:16]} 7. a3 {[%emt 0:03:00]} Be7 {[%emt 0:03:09]} 8. Nge2 {[%emt 0:01:27]} O-O {[%emt 0:06:13]} 9. O-O {[%emt 0:00:30]} Be6 {[%emt 0:02:12]} 10. d4 {[%emt 0:01:25]} Rb8 {[%emt 0:06:55]} 11. d5 {[%emt 0:00:42]} Nxd5 {[%emt 0:10:32]} 12. Nxd5 {[%emt 0:01:13]} Qd7 {[%emt 0:11:58]} 13. e4 {[%emt 0:04:32]} Rbd8 {[%emt 0:05:38]} 14. Be3 {[%emt 0:02:09]} f5 {[%emt 0:01:29]} 15. Nec3 {[%emt 0:01:10]} fxe4 {[%emt 0:07:32]} 16. Bxe4 {[%emt 0:01:03]} Bf5 {[%emt 0:02:00]} 17. Bg2 {[%emt 0:02:34]} Kh8 {[%emt 0:03:13]} 18. b4 {[%emt 0:08:11]} Qe6 {[%emt 0:03:00]} 19. Ra2 {[%emt 0:08:26]} Rd7 {[%emt 0:00:46]} 20. Rd2 {[%emt 0:02:28]} Rfd8 {[%emt 0:01:38]} 21. h3 {[%emt 0:03:53]} e4 {[%emt 0:02:46]} 22. f3 {[%emt 0:05:02]} exf3 {[%emt 0:01:04]} 23. Bxf3 {[%emt 0:00:09]} Bf6 {[%emt 0:00:52]} 24. Bg4 {[%emt 0:01:23]} Bxc3 {[%emt 0:01:14]} 25. Bxf5 {[%emt 0:02:17]} Qe8 {[%emt 0:01:15]} 26. Nxc3 {[%emt 0:00:10]} Qxe3+ {[%emt 0:00:21]} 27. Kh1 {[%emt 0:16:11]} Rxd2 28. Qh5 {[%emt 0:00:43]} Qh6 {[%emt 0:00:26]} 29. Qf7 {normal} Qd6 {[%emt 0:00:42]} 30. Ne4 {[%emt 0:01:10]} Qd5 {[%emt 0:02:02] normal} 31. Qh5 {[%emt 0:03:06]} g6 {[%emt 0:00:40] normal} 1/2-1/2

[Event "GER-ch Youth U10w 2019"]
[Site "Willingen"]
[Date "2019.06.11"]
[Round "5.6"]
[White "Bangiev, Katharina"]
[Black "Vöcking, Julia"]
[Result "1-0"]
[ECO "A04"]
[WhiteElo "1003"]
[BlackElo "812"]
[Annotator "NA"]
[PlyCount "72"]
[EventDate "2019.06.07"]
[EventType "swiss"]
[EventRounds "11"]
[EventCountry "GER"]
[SourceTitle "playchess.com"]
[Source "ChessBase"]
[SourceQuality "1"]
[TimeControl "40/4500+30:900+30"]

1. Nf3 {[%emt 0:00:00]} f5 {[%emt 0:00:00]} 2. g3 {[%emt 0:00:00]} g6 {[%emt 0:00:00]} 3. Bg2 {[%emt 0:00:00]} Nf6 {[%emt 0:00:00]} 4. O-O {[%emt 0:00:04]} Bg7 {[%emt 0:00:00]} 5. d3 {[%emt 0:00:11]} O-O {[%emt 0:00:03]} 6. Nc3 {[%emt 0:00:11]} Nc6 {[%emt 0:00:05]} 7. e4 {[%emt 0:00:14]} d6 {[%emt 0:00:09]} 8. Be3 {[%emt 0:00:37]} e5 {[%emt 0:00:12]} 9. Qd2 {[%emt 0:02:10]} d5 {[%emt 0:00:46]} 10. exd5 {[%emt 0:00:46]} Nxd5 {[%emt 0:00:30]} 11. Nxd5 {[%emt 0:00:22]} Qxd5 {[%emt 0:00:23]} 12. c4 {[%emt 0:00:26]} Qa5 {[%emt 0:00:48]} 13. Qxa5 {[%emt 0:03:11]} Nxa5 {[%emt 0:00:09]} 14. b4 {[%emt 0:00:16]} Nc6 {[%emt 0:00:40]} 15. b5 {[%emt 0:00:19]} Nd4 {[%emt 0:00:06]} 16. Nxd4 {[%emt 0:00:22]} exd4 {[%emt 0:00:08]} 17. Bf4 {[%emt 0:00:15]} c5 {[%emt 0:00:27]} 18. Bd6 {[%emt 0:00:31]} Re8 {[%emt 0:00:39]} 19. Bxc5 {[%emt 0:00:28]} Bd7 {[%emt 0:00:37]} 20. Bxb7 {[%emt 0:00:47]} Rab8 {[%emt 0:00:32]} 21. Bd5+ {[%emt 0:00:38]} Be6 {[%emt 0:00:22]} 22. Bxe6+ {[%emt 0:00:39]} Rxe6 {[%emt 0:00:24]} 23. Bxa7 {[%emt 0:00:44]} Rbe8 {[%emt 0:00:21]} 24. b6 {[%emt 0:00:39]} Be5 {[%emt 0:01:40]} 25. b7 {[%emt 0:00:41]} Bc7 {[%emt 0:00:29]} 26. Rab1 {[%emt 0:00:11]} Re2 {[%emt 0:02:33]} 27. b8=Q {[%emt 0:01:37]} Bxb8 {[%emt 0:00:31]} 28. Rxb8 {[%emt 0:00:33]} Rxb8 {[%emt 0:00:17]} 29. Bxb8 {[%emt 0:00:07]} Kf7 {[%emt 0:00:15]} 30. Ra1 {[%emt 0:00:25]} h5 {[%emt 0:00:16]} 31. a4 {[%emt 0:00:06]} g5 {[%emt 0:00:11]} 32. a5 {[%emt 0:00:08]} h4 {[%emt 0:00:04]} 33. a6 {[%emt 0:00:32]} h3 {[%emt 0:00:19]} 34. a7 {[%emt 0:00:08]} Kg6 {[%emt 0:00:06]} 35. a8=Q {[%emt 0:00:10]} g4 {[%emt 0:00:56]} 36. Qa6+ {[%emt 0:00:35]} Kh5 {[%emt 0:00:23] normal} 1-0

[Event "GER-ch Youth U10w 2019"]
[Site "Willingen"]
[Date "2019.06.12"]
[Round "6.1"]
[White "Mirnaya, Veronika"]
[Black "Bangiev, Katharina"]
[Result "1-0"]
[ECO "B06"]
[WhiteElo "1237"]
[BlackElo "1003"]
[Annotator "NA"]
[PlyCount "72"]
[EventDate "2019.06.07"]
[EventType "swiss"]
[EventRounds "11"]
[EventCountry "GER"]
[SourceTitle "playchess.com"]
[Source "ChessBase"]
[SourceQuality "1"]
[TimeControl "40/4500+30:900+30"]

1. e4 {[%emt 0:00:00]} d6 {[%emt 0:00:00]} 2. d4 {[%emt 0:00:00]} g6 {[%emt 0:00:00]} 3. Nc3 {[%emt 0:00:17]} Bg7 {[%emt 0:00:01]} 4. Be3 {[%emt 0:00:39]} Nf6 {[%emt 0:00:17]} 5. f3 {[%emt 0:00:56]} O-O {[%emt 0:00:36]} 6. Qd2 {[%emt 0:01:23]} Nc6 {[%emt 0:01:03]} 7. O-O-O {[%emt 0:00:59]} e5 {[%emt 0:00:44]} 8. d5 {[%emt 0:00:46]} Ne7 {[%emt 0:00:34]} 9. Bh6 {[%emt 0:02:19]} Qd7 {[%emt 0:03:37]} 10. h4 {[%emt 0:01:34]} Rd8 {[%emt 0:04:36]} 11. Bxg7 {[%emt 0:03:42]} Kxg7 {[%emt 0:00:26]} 12. h5 {[%emt 0:00:35]} Nxh5 {[%emt 0:01:31]} 13. g4 {[%emt 0:00:59]} Nf4 {[%emt 0:01:13]} 14. Qh2 {[%emt 0:02:58]} Rh8 {[%emt 0:01:17]} 15. Nce2 {[%emt 0:02:55]} Nxe2+ {[%emt 0:01:33]} 16. Bxe2 {[%emt 0:00:17]} c6 {[%emt 0:01:59]} 17. Nh3 {[%emt 0:01:22]} f6 {[%emt 0:01:30]} 18. g5 {[%emt 0:01:27]} f5 {[%emt 0:02:24]} 19. exf5 {[%emt 0:01:52]} Nxf5 {[%emt 0:01:02]} 20. Bd3 {[%emt 0:00:48]} cxd5 {[%emt 0:01:22]} 21. Bxf5 {[%emt 0:00:48]} Qxf5 {[%emt 0:00:10]} 22. Qg2 {[%emt 0:09:00]} d4 {[%emt 0:02:23]} 23. Nf2 {[%emt 0:00:38]} d5 {[%emt 0:04:07]} 24. Qg3 {[%emt 0:10:01]} Be6 {[%emt 0:02:04]} 25. Qh4 {[%emt 0:03:38]} Qxf3 {[%emt 0:06:14]} 26. Qh6+ {[%emt 0:01:33]} Kf7 {[%emt 0:06:53]} 27. Nd3 {[%emt 0:03:19]} Qe3+ {[%emt 0:03:33]} 28. Kb1 {[%emt 0:00:13]} Rag8 {[%emt 0:09:09]} 29. Rde1 {[%emt 0:05:08]} Qg3 {[%emt 0:01:27]} 30. Rhf1+ {[%emt 0:01:43]} Ke7 {[%emt 0:00:20]} 31. Rxe5 {[%emt 0:00:17]} Kd6 {[%emt 0:01:26]} 32. Rf6 {[%emt 0:01:54]} Re8 {[%emt 0:01:10]} 33. Qg7 {[%emt 0:00:52]} Qg1+ {[%emt 0:01:23]} 34. Re1 {[%emt 0:00:10]} Qxg5 {[%emt 0:00:19]} 35. Ref1 {[%emt 0:02:23]} Rb8 {[%emt 0:08:49]} 36. Qf7 {[%emt 0:12:13]} Rhe8 {[%emt 0:03:42] normal} 1-0

[Event "GER-ch Youth U10w 2019"]
[Site "Willingen"]
[Date "2019.06.12"]
[Round "6.2"]
[White "Sickmann, Lisa"]
[Black "Wartenberg, Alissa"]
[Result "0-1"]
[ECO "C55"]
[WhiteElo "1418"]
[BlackElo "1291"]
[Annotator "NA"]
[PlyCount "65"]
[EventDate "2019.06.07"]
[EventType "swiss"]
[EventRounds "11"]
[EventCountry "GER"]
[SourceTitle "playchess.com"]
[Source "ChessBase"]
[SourceQuality "1"]
[TimeControl "40/4500+30:900+30"]

1. e4 {[%emt 0:00:57]} e5 {[%emt 0:00:00]} 2. Nf3 {[%emt 0:00:17]} Nc6 {[%emt 0:00:00]} 3. Bc4 {[%emt 0:00:12]} Nf6 {[%emt 0:00:00]} 4. d3 {[%emt 0:00:09]} Bd6 {[%emt 0:00:38]} 5. c3 {[%emt 0:02:04]} O-O {[%emt 0:00:38]} 6. O-O {[%emt 0:04:31]} Re8 {[%emt 0:00:47]} 7. Re1 {[%emt 0:02:38]} Bf8 {[%emt 0:02:20]} 8. Nbd2 {[%emt 0:03:10]} d5 {[%emt 0:01:15]} 9. exd5 {[%emt 0:01:46]} Nxd5 {[%emt 0:00:13]} 10. d4 {[%emt 0:02:45]} Bg4 {[%emt 0:01:06]} 11. h3 {[%emt 0:04:13]} Bh5 {[%emt 0:00:37]} 12. g4 {[%emt 0:02:03]} Bg6 {[%emt 0:00:44]} 13. Nxe5 {[%emt 0:01:59]} Nxe5 {[%emt 0:01:03]} 14. dxe5 {[%emt 0:02:10]} Nf4 {[%emt 0:01:16]} 15. Bf1 {[%emt 0:02:17]} Bc5 {[%emt 0:01:50]} 16. Nf3 {[%emt 0:04:41]} Nd3 {[%emt 0:10:56]} 17. Bxd3 {[%emt 0:04:34]} Bxd3 {[%emt 0:00:40]} 18. Be3 {[%emt 0:00:39]} Bf8 {[%emt 0:00:43]} 19. Bd4 {[%emt 0:00:57]} Bb5 {[%emt 0:00:35]} 20. Qc2 {[%emt 0:01:46]} Bc6 {[%emt 0:00:56]} 21. Qe2 {[%emt 0:05:45]} Qd5 {[%emt 0:00:54]} 22. Kg2 {[%emt 0:00:30]} Re6 {[%emt 0:02:07]} 23. Red1 {[%emt 0:01:31]} Rae8 {[%emt 0:05:21]} 24. Qd3 {[%emt 0:04:56]} Bb5 {[%emt 0:00:56]} 25. Qf5 {[%emt 0:04:31]} Bd7 {[%emt 0:03:01]} 26. Qf4 {[%emt 0:00:38]} Be7 {[%emt 0:13:59]} 27. Bxa7 {[%emt 0:04:04]} Qc6 {[%emt 0:02:52]} 28. Bd4 {[%emt 0:01:06]} f6 {[%emt 0:02:33]} 29. exf6 {[%emt 0:02:42]} Bxf6 {[%emt 0:00:15]} 30. Bxf6 {[%emt 0:00:48]} Rxf6 {[%emt 0:00:31]} 31. Qg3 {[%emt 0:00:28]} Ref8 {[%emt 0:01:55] normal} 32. Rd3 {[%emt 0:01:08]} b6 {[%emt 0:03:22]} 33. Re1 {[%emt 0:01:29] normal} 0-1

[Event "GER-ch Youth U10w 2019"]
[Site "Willingen"]
[Date "2019.06.12"]
[Round "6.3"]
[White "Glotz, Diana"]
[Black "Oellrich, Emma"]
[Result "1-0"]
[ECO "A25"]
[WhiteElo "1244"]
[BlackElo "1484"]
[Annotator "NA"]
[PlyCount "34"]
[EventDate "2019.06.07"]
[EventType "swiss"]
[EventRounds "11"]
[EventCountry "GER"]
[SourceTitle "playchess.com"]
[Source "ChessBase"]
[SourceQuality "1"]
[TimeControl "40/4500+30:900+30"]

1. c4 {[%emt 0:00:00]} e5 {[%emt 0:00:00]} 2. Nc3 {[%emt 0:00:00]} Nc6 {[%emt 0:00:00]} 3. g3 {[%emt 0:00:00]} f5 {[%emt 0:00:00]} 4. Bg2 {[%emt 0:00:44]} Nf6 {[%emt 0:00:00]} 5. d3 {[%emt 0:00:46]} Bb4 {[%emt 0:00:00]} 6. Bg5 {[%emt 0:00:36]} Bxc3+ {[%emt 0:00:57]} 7. bxc3 {[%emt 0:00:18]} O-O {[%emt 0:00:16]} 8. Bxf6 {[%emt 0:01:17]} Qxf6 {[%emt 0:00:20]} 9. Qd2 {[%emt 0:10:50]} f4 {[%emt 0:01:52]} 10. Nf3 {[%emt 0:01:22]} Re8 {[%emt 0:01:13]} 11. O-O {[%emt 0:03:01]} fxg3 {[%emt 0:00:21]} 12. fxg3 {[%emt 0:01:15]} Qe7 {[%emt 0:01:33]} 13. Rab1 {[%emt 0:06:18]} e4 {[%emt 0:00:51]} 14. dxe4 {[%emt 0:00:28]} Qxe4 {[%emt 0:00:38]} 15. Ng5 {[%emt 0:05:54]} Qe7 {[%emt 0:05:02]} 16. Bd5+ Kh8 {[%emt 0:00:10]} 17. Nf7+ {[%emt 0:01:52]} Kg8 {[%emt 0:00:10] normal} 1-0